bitfinex-derivatives/quotes_BTCF0:USTF0_20250722
["timestamp","ask_amount","ask_price","bid_price","bid_amount"]
[1753179963726,1.1206004,118560.0,118550.0,0.2669646]
[1753179963932,1.75496903,118560.0,118550.0,0.06406]
[1753179964236,1.54351282,118560.0,118550.0,0.06006]
[1753179967325,1.54351282,118560.0,118550.0,0.09039121]
[1753179967725,1.1206004,118560.0,118550.0,0.09039121]
[1753179967928,1.54351282,118560.0,118550.0,0.08220121]
[1753179968832,1.54351282,118560.0,118550.0,0.06006]
[1753179970433,1.1206004,118560.0,118550.0,0.06006]
[1753179970739,1.54351282,118560.0,118550.0,0.06006]
[1753179970933,0.95583282,118560.0,118550.0,0.06006]
[1753179971128,1.54439282,118560.0,118550.0,0.06006]
[1753179971930,0.95583282,118560.0,118550.0,0.06006]
[1753179972138,1.54431282,118560.0,118550.0,0.06006]
[1753179973441,0.95583282,118560.0,118550.0,0.06006]
[1753179973742,1.54415282,118560.0,118550.0,0.06006]
[1753179977937,1.54415282,118560.0,118550.0,0.02857]
[1753179978143,1.75560903,118560.0,118550.0,0.02857]
[1753179978442,1.75560903,118560.0,118550.0,0.05276]
[1753179978743,1.54415282,118560.0,118550.0,0.05276]
[1753179980833,1.54415282,118560.0,118550.0,0.06137]
[1753179986146,1.75560903,118560.0,118550.0,0.06137]
[1753179986447,1.75560903,118560.0,118530.0,0.12989212]
[1753179986448,0.168649,118540.0,118530.0,0.05288]
[1753179986743,2.12959375,118540.0,118530.0,0.05288]
[1753179987054,1.91813754,118540.0,118530.0,0.05288]
[1753179987350,1.98619412,118540.0,118530.0,0.05288]
[1753179987548,1.98619412,118540.0,118530.0,0.06149]
[1753179988648,1.98619412,118540.0,118530.0,0.06349]
[1753179990048,0.18594512,118540.0,118530.0,0.48299941]
[1753179990251,0.77366512,118540.0,118530.0,0.48299941]
[1753179990553,0.77366512,118540.0,118530.0,0.84379941]
[1753179991252,0.98508133,118540.0,118530.0,0.84379941]
[1753179991454,0.98508133,118540.0,118530.0,0.48299941]
[1753179991642,0.98508133,118540.0,118530.0,0.31710552]
[1753179991845,1.19653754,118540.0,118530.0,0.31710552]
[1753179992054,0.77362512,118540.0,118530.0,0.31710552]
[1753179992249,1.19653754,118540.0,118530.0,0.2715432]
[1753179992650,1.19653754,118540.0,118530.0,0.31710552]
[1753179992850,1.19653754,118540.0,118530.0,0.2715432]
[1753179993051,1.19653754,118540.0,118530.0,0.05488]
[1753179993258,1.41650996,118540.0,118530.0,0.05488]
[1753179993457,1.41650996,118540.0,118530.0,0.05688]
[1753179994157,1.41650996,118540.0,118530.0,0.05588]
[1753179994457,1.48477503,118540.0,118530.0,0.05588]
[1753179994656,1.48477503,118540.0,118530.0,0.05388]
[1753179995256,1.48577503,118540.0,118530.0,0.05288]
[1753179995751,1.20369019,118540.0,118530.0,0.05288]
[1753179995951,1.48577503,118540.0,118530.0,0.05288]
[1753179996355,1.48577503,118540.0,118530.0,0.2652832]
[1753179996653,1.48577503,118540.0,118530.0,0.2695432]
[1753179998258,1.48477503,118540.0,118530.0,0.2695432]
[1753179998951,0.89709503,118540.0,118530.0,0.2695432]
[1753179999152,1.13442512,118540.0,118530.0,0.2695432]
[1753179999352,0.01729612,118540.0,118530.0,0.55162804]
[1753179999559,0.01729612,118540.0,118530.0,1.28242804]
[1753179999955,0.01729612,118540.0,118530.0,1.32799036]
[1753180000259,0.01729612,118540.0,118530.0,0.95799036]
[1753180000455,0.01729612,118540.0,118530.0,0.95899036]
[1753180001060,0.01729612,118540.0,118530.0,0.95799036]
[1753180001259,0.01729612,118540.0,118530.0,0.95999036]
[1753180001654,0.18594502,118540.0,118530.0,0.96099036]
[1753180002259,0.18594502,118540.0,118530.0,0.96199036]
[1753180005163,0.01729612,118540.0,118530.0,0.96199036]
[1753180008764,0.01729612,118540.0,118530.0,1.27199036]
[1753180009665,0.7986065,118550.0,118540.0,0.267379]
[1753180009857,0.7984065,118550.0,118540.0,0.91026384]
[1753180010664,0.7984065,118550.0,118540.0,0.628179]
[1753180010859,0.7984065,118550.0,118540.0,0.629179]
[1753180011255,1.08049134,118550.0,118540.0,0.629179]
[1753180011562,0.2108065,118550.0,118540.0,0.630179]
[1753180011761,0.7984065,118550.0,118540.0,0.630179]
[1753180012466,0.2108065,118550.0,118540.0,0.630179]
[1753180012667,0.7984065,118550.0,118540.0,0.630179]
[1753180013168,0.7983665,118550.0,118540.0,0.630179]
[1753180013569,0.2108065,118550.0,118540.0,0.630179]
[1753180013770,0.7983665,118550.0,118540.0,0.630179]
[1753180014168,1.08045134,118550.0,118540.0,0.630179]
[1753180014563,0.2109854,118560.0,118550.0,0.2673648]
[1753180014762,0.81565483,118570.0,118560.0,0.2673506]
[1753180014965,0.81545483,118570.0,118560.0,0.54943544]
[1753180015366,0.81545483,118570.0,118560.0,0.91023544]
[1753180015566,0.81545483,118570.0,118560.0,0.6281506]
[1753180016372,0.81545483,118570.0,118560.0,0.65842943]
[1753180016571,0.81645483,118570.0,118560.0,0.65842943]
[1753180016872,0.81645483,118570.0,118560.0,0.66676455]
[1753180018873,0.81645483,118570.0,118560.0,0.65842943]
[1753180019675,1.09853967,118570.0,118560.0,0.65842943]
[1753180019969,0.81645483,118570.0,118560.0,0.65842943]
[1753180020176,1.09853967,118570.0,118560.0,0.72550062]
[1753180020368,1.09853967,118570.0,118560.0,0.69522179]
[1753180020570,1.09853967,118570.0,118560.0,0.6281506]
[1753180021674,0.77430293,118570.0,118560.0,0.6281506]
[1753180021866,0.77429383,118570.0,118560.0,0.91023544]
[1753180022279,0.77429383,118570.0,118560.0,0.63664302]
[1753180022769,0.01812753,118570.0,118560.0,1.26872786]
[1753180023072,0.60556753,118570.0,118560.0,0.91872786]
[1753180023675,0.01812753,118570.0,118560.0,1.87616786]
[1753180023874,0.01812753,118570.0,118560.0,1.50616786]
[1753180024071,0.01812753,118570.0,118560.0,1.86616786]
[1753180024577,0.01812753,118570.0,118560.0,1.82616786]
[1753180024773,0.01812753,118570.0,118560.0,1.84616786]
[1753180025173,0.01812753,118570.0,118560.0,1.91463498]
[1753180026382,0.18673383,118570.0,118560.0,1.57463498]
[1753180026781,0.18673383,118570.0,118560.0,1.60491381]
[1753180027781,0.01812753,118570.0,118560.0,1.57463498]
[1753180027983,0.18673383,118570.0,118560.0,1.57463498]
[1753180028782,0.18673383,118570.0,118560.0,0.98719498]
[1753180028984,0.18673383,118570.0,118560.0,1.57455498]
[1753180029282,0.18673383,118570.0,118560.0,1.60483381]
[1753180029581,0.18673383,118570.0,118560.0,1.57455498]
[1753180030283,0.18673383,118570.0,118560.0,1.65039613]
[1753180030577,0.18673383,118570.0,118560.0,1.6201173]
[1753180031479,0.46881867,118570.0,118560.0,0.73537136]
[1753180031683,0.46781867,118570.0,118560.0,0.96189136]
[1753180032079,0.46781867,118570.0,118560.0,0.95339894]
[1753180034780,0.46781867,118570.0,118560.0,0.36607894]
[1753180034987,1.41589867,118570.0,118560.0,0.29761172]
[1753180035179,1.41589867,118570.0,118560.0,0.06117]
[1753180035375,1.41589867,118570.0,118560.0,0.05288]
[1753180035579,1.41589867,118570.0,118560.0,0.2215005]
[1753180035778,1.41589867,118570.0,118560.0,0.2296105]
[1753180035986,0.54653383,118570.0,118560.0,0.2662705]
[1753180036185,1.41589867,118570.0,118560.0,0.2662705]
[1753180036386,1.41589867,118570.0,118560.0,0.09765]
[1753180037281,1.13381383,118570.0,118560.0,0.09765]
[1753180037484,1.41589867,118570.0,118560.0,0.09765]
[1753180037781,1.41589867,118570.0,118560.0,0.2662706]
[1753180037989,1.41589867,118570.0,118560.0,0.09765]
[1753180038690,1.41589867,118570.0,118560.0,0.2662705]
[1753180038985,1.05509867,118570.0,118560.0,0.2662705]
[1753180039190,1.41589867,118570.0,118560.0,0.2662705]
[1753180039585,1.05509867,118570.0,118560.0,0.2662705]
[1753180040088,1.41589867,118570.0,118560.0,0.2662705]
[1753180040480,1.41576514,118570.0,118560.0,0.2662705]
[1753180040888,1.05496514,118570.0,118560.0,0.2662705]
[1753180041091,1.41576514,118570.0,118560.0,0.2662705]
[1753180042792,1.41576514,118570.0,118560.0,0.54835534]
[1753180042793,0.016994,118570.0,118560.0,0.54835534]
[1753180042992,0.7728803,118570.0,118560.0,0.90915534]
[1753180043193,0.604274,118570.0,118560.0,0.90915534]
[1753180043790,0.7728803,118570.0,118560.0,0.90915534]
[1753180044292,0.7728803,118570.0,118560.0,0.91015534]
[1753180045193,0.8404203,118580.0,118570.0,0.2635163]
[1753180045389,0.8402203,118580.0,118570.0,0.2635163]
[1753180046392,0.7980311,118580.0,118570.0,0.90640114]
[1753180046594,0.7980311,118580.0,118570.0,0.6243163]
[1753180046984,0.7980311,118580.0,118570.0,0.90640114]
[1753180046985,0.2107511,118580.0,118570.0,0.90640114]
[1753180047189,0.7980311,118580.0,118570.0,0.93666236]
[1753180048995,0.7980311,118580.0,118570.0,0.98222468]
[1753180049196,0.7980311,118580.0,118570.0,0.93666236]
[1753180049388,0.7980311,118580.0,118570.0,0.98222468]
[1753180050097,0.7980311,118580.0,118570.0,0.70013984]
[1753180050297,0.7980311,118580.0,118570.0,0.65457752]
[1753180051997,0.2107511,118580.0,118570.0,0.65457752]
[1753180052194,0.7979511,118580.0,118570.0,0.65457752]
[1753180052597,0.7979511,118580.0,118570.0,0.93666236]
[1753180054688,0.7979511,118580.0,118570.0,0.65457752]
[1753180056598,0.7979511,118580.0,118570.0,0.65557752]
[1753180057000,0.7979511,118580.0,118570.0,0.93766236]
[1753180057201,0.7979511,118580.0,118570.0,0.93866236]
[1753180058594,0.7979511,118580.0,118570.0,0.65657752]
[1753180059299,0.1687849,118590.0,118580.0,0.2635021]
[1753180059500,1.2430851,118600.0,118590.0,0.2634878]
[1753180059703,1.2007412,118600.0,118590.0,0.28620456]
[1753180060104,1.48282604,118600.0,118590.0,0.28620456]
[1753180060801,1.48282604,118600.0,118590.0,0.2634878]
[1753180061203,1.48382604,118600.0,118590.0,0.28620456]
[1753180062400,1.159598,118600.0,118590.0,0.28620456]
[1753180062605,0.58808,118600.0,118590.0,0.9290894]
[1753180062809,0.58808,118600.0,118590.0,0.93663386]
[1753180063601,0.001,118600.0,118590.0,0.93663386]
[1753180063801,0.001,118600.0,118590.0,0.94501066]
[1753180064403,0.001,118600.0,118590.0,1.55542896]
[1753180065001,0.1695637,118600.0,118590.0,1.27334412]
[1753180065197,0.1695637,118600.0,118590.0,1.2430829]
[1753180069998,0.1695637,118600.0,118590.0,1.25064582]
[1753180070404,0.1695637,118600.0,118590.0,1.23896334]
[1753180073109,0.001,118600.0,118590.0,1.23896334]
[1753180073612,0.001,118600.0,118590.0,1.26165482]
[1753180074015,0.001,118600.0,118590.0,1.54373966]
[1753180074208,0.1695636,118600.0,118590.0,1.54373966]
[1753180075015,0.1695636,118600.0,118590.0,1.26165482]
[1753180075919,0.45164844,118600.0,118590.0,1.25255802]
[1753180077018,0.1695636,118600.0,118590.0,1.25255802]
[1753180079113,0.1695636,118600.0,118590.0,1.22986654]
[1753180079316,0.45164844,118600.0,118590.0,1.22986654]
[1753180079711,0.1695636,118600.0,118590.0,1.22986654]
[1753180080115,0.45164844,118600.0,118590.0,1.22986654]
[1753180080309,0.28308484,118600.0,118590.0,1.26012776]
[1753180080615,0.001,118600.0,118590.0,1.26012776]
[1753180080818,0.001,118600.0,118590.0,1.2828565]
[1753180081519,0.1695637,118600.0,118590.0,1.2828565]
[1753180082221,0.1695637,118600.0,118590.0,1.56494134]
[1753180082622,0.45164854,118600.0,118590.0,0.67727776]
[1753180082824,0.45164854,118600.0,118590.0,0.31647776]
[1753180083721,0.45164854,118600.0,118590.0,0.29374902]
[1753180083923,0.45064854,118600.0,118590.0,0.31648232]
[1753180084318,0.45064854,118600.0,118590.0,0.29374902]
[1753180087520,0.1685637,118600.0,118590.0,0.29374902]
[1753180087923,0.45064854,118600.0,118590.0,0.29374902]
[1753180090121,0.45064854,118600.0,118590.0,0.33931134]
[1753180092120,0.45064854,118600.0,118590.0,0.30905012]
[1753180093322,0.45064854,118600.0,118590.0,0.66985012]
[1753180093723,0.45064854,118600.0,118590.0,0.95193496]
[1753180093724,0.1685637,118600.0,118590.0,0.95193496]
[1753180095226,0.1685637,118600.0,118590.0,1.12050526]
[1753180097122,0.1685637,118600.0,118590.0,0.83842042]
[1753180097327,0.1685637,118600.0,118590.0,1.12050526]
[1753180101630,0.1685637,118600.0,118590.0,0.47762042]
[1753180102121,0.1685637,118600.0,118590.0,0.83842042]
[1753180105825,1.05457034,118610.0,118590.0,0.83842042]
[1753180105826,0.7303451,118610.0,118590.0,0.83842042]
[1753180106032,0.1685636,118600.0,118590.0,0.83842042]
[1753180108535,0.1685636,118600.0,118590.0,1.42538042]
[1753180109935,0.1685636,118600.0,118590.0,0.83842042]
[1753180110136,0.1685636,118600.0,118590.0,1.42534042]
[1753180110438,0.1685636,118600.0,118590.0,1.40254884]
[1753180110741,0.45064844,118600.0,118590.0,1.36040544]
[1753180111534,0.45064844,118600.0,118590.0,0.99960544]
[1753180111935,0.45064844,118600.0,118590.0,0.41268544]
[1753180112638,0.1685636,118600.0,118590.0,0.41268544]
[1753180112834,0.45064844,118600.0,118590.0,0.41268544]
[1753180115934,0.45064844,118600.0,118590.0,0.41268582]
[1753180116841,0.1685636,118600.0,118590.0,0.41268582]
[1753180117041,0.1685636,118600.0,118590.0,0.77348582]
[1753180117435,0.1685636,118600.0,118590.0,1.05557066]
[1753180118739,0.1685636,118600.0,118590.0,1.05557065]
[1753180119242,0.8989034,118610.0,118600.0,0.2060005]
[1753180119434,1.21605824,118610.0,118600.0,0.258621]
[1753180120036,1.08964074,118610.0,118600.0,0.619421]
[1753180120237,0.58673624,118620.0,118610.0,0.2049862]
[1753180120437,0.8751714,118620.0,118610.0,0.64635731]
[1753180121138,1.15725624,118620.0,118610.0,0.64635731]
[1753180122142,1.15925624,118620.0,118610.0,0.64635731]
[1753180124546,1.15925624,118620.0,118610.0,0.6235862]
[1753180124744,1.15925624,118620.0,118610.0,0.64634795]
[1753180125046,1.15925624,118620.0,118610.0,0.64634784]
[1753180125343,1.17541624,118620.0,118610.0,0.64634784]
[1753180125748,0.8933314,118620.0,118610.0,0.64634784]
[1753180125942,1.17541624,118620.0,118610.0,0.64634784]
[1753180127343,1.17541624,118620.0,118610.0,0.6549589]
[1753180127541,0.58853624,118620.0,118610.0,0.6549589]
[1753180127742,1.17537624,118620.0,118610.0,0.6549589]
[1753180128242,1.13324084,118620.0,118610.0,0.6549589]
[1753180128544,0.7928521,118620.0,118610.0,0.6549589]
[1753180129747,0.7928521,118620.0,118610.0,0.64634784]
[1753180130046,1.10132694,118620.0,118610.0,0.64634784]
[1753180130244,1.10391694,118620.0,118610.0,0.64634784]
[1753180130446,0.8192421,118620.0,118610.0,0.64634784]
[1753180131146,1.10132694,118620.0,118610.0,0.64634784]
[1753180131642,0.8192421,118620.0,118610.0,0.64634784]
[1753180131850,0.8192421,118620.0,118610.0,0.65478698]
[1753180132046,0.8090121,118620.0,118610.0,0.65478698]
[1753180132249,0.7928521,118620.0,118610.0,0.65478698]
[1753180134345,1.10450694,118620.0,118610.0,0.64634784]
[1753180134541,1.10804694,118620.0,118610.0,0.64634784]
[1753180136653,1.46884694,118620.0,118610.0,0.24910784]
[1753180136852,1.46884694,118620.0,118610.0,0.02507]
[1753180137044,1.46884694,118620.0,118600.0,0.36374522]
[1753180137045,0.237696,118610.0,118600.0,0.36374522]
[1753180137246,0.89758659,118610.0,118600.0,0.33338424]
[1753180137446,0.89758659,118610.0,118600.0,0.36597424]
[1753180138254,0.89858659,118610.0,118600.0,0.36597424]
[1753180139248,0.53778659,118610.0,118600.0,0.36597424]
[1753180139454,0.89858659,118610.0,118600.0,0.36597424]
[1753180139656,0.89858659,118610.0,118600.0,0.36982424]
[1753180140349,0.89858659,118610.0,118600.0,0.35804752]
[1753180140546,0.001,118610.0,118600.0,1.35817072]
[1753180140758,0.58692,118620.0,118610.0,0.168546]
[1753180140958,0.58688,118630.0,118620.0,0.2627717]
[1753180141158,0.58668,118630.0,118620.0,1.31112422]
[1753180141366,0.80824866,118640.0,118630.0,0.2627575]
[1753180141555,1.1062935,118640.0,118630.0,0.64627887]
[1753180142158,1.1197035,118640.0,118630.0,0.64627887]
[1753180143065,1.1062935,118640.0,118630.0,0.64627887]
[1753180144564,1.1207035,118640.0,118630.0,0.28547887]
[1753180144765,1.4850435,118640.0,118630.0,0.28547887]
[1753180144959,1.4850435,118640.0,118630.0,0.26811887]
[1753180145760,1.4840435,118640.0,118630.0,0.26811887]
[1753180146268,1.4840435,118640.0,118630.0,0.28547887]
[1753180147969,1.4840435,118640.0,118630.0,0.0578]
[1753180148167,1.4840435,118640.0,118630.0,0.02507]
[1753180148673,1.4840435,118640.0,118630.0,0.2184576]
[1753180148866,1.4840435,118640.0,118630.0,0.04994]
[1753180150574,1.46721814,118640.0,118630.0,0.04994]
[1753180150873,1.76619669,118640.0,118620.0,0.3121986]
[1753180151069,0.88140244,118630.0,118620.0,0.3121986]
[1753180152176,0.88140244,118630.0,118620.0,0.3448386]
[1753180152472,0.88140244,118630.0,118620.0,0.3458386]
[1753180153376,0.88140244,118630.0,118620.0,0.3468386]
[1753180153775,0.88140244,118630.0,118620.0,0.2625763]
[1753180154372,0.88140244,118630.0,118620.0,0.06141]
[1753180154571,0.88140244,118630.0,118620.0,0.05355]
[1753180154970,0.88140244,118630.0,118620.0,0.002]
[1753180165083,0.88140244,118630.0,118620.0,0.02983]
[1753180166184,0.88140244,118630.0,118620.0,0.05355]
[1753180167074,0.88140244,118630.0,118620.0,0.002]
[1753180167280,0.88140244,118630.0,118620.0,0.02983]
[1753180167680,0.88140244,118630.0,118620.0,0.02883]
[1753180168184,0.88140244,118630.0,118620.0,0.02783]
[1753180168488,0.88140244,118630.0,118620.0,0.05155]
[1753180168786,1.46780244,118630.0,118620.0,0.09648]
[1753180169885,1.46880244,118630.0,118620.0,0.09648]
[1753180170982,1.46876244,118630.0,118620.0,0.09648]
[1753180173890,1.1866776,118630.0,118620.0,0.09648]
[1753180174089,1.46876244,118630.0,118620.0,0.09648]
[1753180174578,0.87903244,118630.0,118620.0,0.09648]
[1753180174783,1.46535244,118630.0,118620.0,0.09648]
[1753180175886,1.46872244,118630.0,118620.0,0.09648]
[1753180176086,1.46872244,118630.0,118620.0,0.2650118]
[1753180176286,1.46872244,118630.0,118620.0,0.09648]
[1753180178391,0.86619244,118630.0,118620.0,0.09648]
[1753180178583,1.43631244,118630.0,118620.0,0.2650118]
[1753180181394,1.43631244,118630.0,118620.0,0.28771721]
[1753180182395,1.43631244,118630.0,118620.0,0.2650118]
[1753180183193,1.43631244,118630.0,118620.0,0.28771721]
[1753180185697,1.45247244,118630.0,118620.0,0.28771721]
[1753180186897,1.43631244,118630.0,118620.0,0.28771721]
[1753180188493,1.07551244,118630.0,118620.0,0.28771721]
[1753180188998,1.07551244,118630.0,118620.0,0.64851721]
[1753180189898,1.07551244,118630.0,118620.0,0.6788118]
[1753180190499,1.07551244,118630.0,118620.0,0.65610639]
[1753180191502,1.09167244,118630.0,118620.0,0.65610639]
[1753180191707,1.10356244,118630.0,118620.0,0.65610639]
[1753180191898,1.10665244,118630.0,118620.0,0.65610639]
[1753180192398,1.10356244,118630.0,118620.0,0.65610639]
[1753180193702,1.10356244,118630.0,118620.0,0.67884522]
[1753180195705,0.7934276,118630.0,118620.0,0.67884522]
[1753180195903,1.07551244,118630.0,118620.0,0.67884522]
[1753180197905,1.07551244,118630.0,118620.0,0.74486917]
[1753180199407,1.07551244,118630.0,118620.0,0.72213034]
[1753180199704,0.47120244,118630.0,118620.0,0.72213034]
[1753180199905,0.1695176,118630.0,118620.0,1.00421518]
[1753180200106,0.7553576,118630.0,118620.0,1.00421518]
[1753180200301,0.58684,118630.0,118620.0,1.38421518]
[1753180200504,0.18559711,118640.0,118630.0,0.2628476]
[1753180200712,0.18539711,118640.0,118630.0,1.26573244]
[1753180200906,0.18539711,118640.0,118630.0,0.90573244]
[1753180201304,0.18539711,118640.0,118630.0,0.9369615]
[1753180201805,0.18539711,118640.0,118630.0,0.65487666]
[1753180203009,0.18539711,118640.0,118630.0,1.2669615]
[1753180203010,0.01689371,118640.0,118630.0,1.2669615]
[1753180204908,0.18539701,118640.0,118630.0,1.2669615]
[1753180205817,0.18539701,118640.0,118630.0,0.65487666]
[1753180206208,0.18539701,118640.0,118630.0,0.63213826]
[1753180206407,0.18539701,118640.0,118630.0,0.9369615]
[1753180208122,0.18539721,118640.0,118630.0,0.65487666]
[1753180208416,0.18539721,118640.0,118630.0,0.9369615]
[1753180210618,0.18539721,118640.0,118630.0,0.98998537]
[1753180210819,0.18539721,118640.0,118630.0,0.94451769]
[1753180211116,0.16917721,118640.0,118630.0,0.94451769]
[1753180211315,0.03793821,118700.0,118690.0,0.1684325]
[1753180211510,0.14025725,118730.0,118720.0,0.16839]
[1753180211511,0.04932,118730.0,118720.0,0.16839]
[1753180211714,0.04932,118730.0,118720.0,1.76683484]
[1753180212024,0.00762,118740.0,118720.0,1.03513484]
[1753180212224,0.01162,118740.0,118730.0,0.6044657]
[1753180212423,0.02707,118740.0,118730.0,1.1900257]
[1753180212630,0.04374,118740.0,118730.0,1.1880257]
[1753180212825,0.04374,118740.0,118730.0,0.6024657]
[1753180213026,0.04374,118740.0,118730.0,1.1880257]
[1753180213424,0.04474,118740.0,118730.0,1.19623016]
[1753180213622,0.04474,118740.0,118730.0,1.1880257]
[1753180214128,0.09406,118740.0,118730.0,1.1880257]
[1753180215222,0.06194,118740.0,118730.0,1.48327602]
[1753180215823,0.001,118740.0,118730.0,1.48327602]
[1753180216330,0.09306,118750.0,118740.0,0.2436516]
[1753180216529,0.09306,118750.0,118740.0,0.89970192]
[1753180217027,0.10610311,118750.0,118740.0,0.89970192]
[1753180217629,0.10610311,118750.0,118740.0,0.6044516]
[1753180218027,0.55653535,118750.0,118740.0,0.5871216]
[1753180218222,0.55653535,118750.0,118740.0,0.61013572]
[1753180218434,0.38818795,118750.0,118740.0,0.61013572]
[1753180218635,0.55653535,118750.0,118740.0,0.5871216]
[1753180218829,0.55653535,118750.0,118740.0,0.61011165]
[1753180219133,0.27445051,118750.0,118740.0,0.61011165]
[1753180219434,0.27445051,118750.0,118740.0,0.5871216]
[1753180219634,0.55653535,118750.0,118740.0,0.5622016]
[1753180220233,0.27445051,118750.0,118740.0,0.5622016]
[1753180220433,0.55653535,118750.0,118740.0,0.5622016]
[1753180220633,0.27445051,118750.0,118740.0,0.5871216]
[1753180221633,0.55653535,118750.0,118740.0,0.5622016]
[1753180222432,0.27445051,118750.0,118740.0,0.5632016]
[1753180222727,0.55653535,118750.0,118740.0,0.5632016]
[1753180223134,0.27445051,118750.0,118740.0,0.5632016]
[1753180223330,0.27445051,118750.0,118740.0,0.5632015]
[1753180223536,0.55653535,118750.0,118740.0,0.5632015]
[1753180224239,0.27445051,118750.0,118740.0,0.5632015]
[1753180224442,0.55653535,118750.0,118740.0,0.5632015]
[1753180225839,0.27445051,118750.0,118740.0,0.6054515]
[1753180226142,0.27445051,118750.0,118740.0,0.62836461]
[1753180226345,0.27445051,118750.0,118740.0,0.88753634]
[1753180226545,0.27445051,118750.0,118740.0,0.6054515]
[1753180226743,0.27445051,118750.0,118740.0,0.39484]
[1753180226946,0.55653535,118750.0,118740.0,0.39484]
[1753180227142,0.27445051,118750.0,118740.0,0.39484]
[1753180227350,0.55653535,118750.0,118740.0,0.5632015]
[1753180227542,0.27445051,118750.0,118740.0,0.5632015]
[1753180227741,0.55653535,118750.0,118740.0,0.5632015]
[1753180228046,0.55653535,118750.0,118740.0,0.5642015]
[1753180228446,0.55653535,118750.0,118740.0,0.5891215]
[1753180229143,0.27445051,118750.0,118740.0,0.5891215]
[1753180229447,0.27445051,118750.0,118740.0,0.6064515]
[1753180230241,0.27445051,118750.0,118740.0,0.67329362]
[1753180232047,0.27445051,118750.0,118740.0,0.42964212]
[1753180232048,1.14933535,118750.0,118740.0,0.42964212]
[1753180232248,0.86725051,118750.0,118740.0,0.42964212]
[1753180232441,0.27445051,118750.0,118740.0,0.64997093]
[1753180232639,0.27445051,118750.0,118740.0,0.67489093]
[1753180233046,0.27445051,118750.0,118740.0,0.67589093]
[1753180233342,0.27445051,118750.0,118740.0,0.69322093]
[1753180233539,0.27445051,118750.0,118740.0,0.67429362]
[1753180233951,0.27445051,118750.0,118740.0,0.95637846]
[1753180234842,0.27445051,118750.0,118740.0,0.69301017]
[1753180235344,0.55653535,118750.0,118740.0,0.50731867]
[1753180235546,0.55653535,118750.0,118740.0,0.48239867]
[1753180235746,0.27445051,118750.0,118740.0,0.65076017]
[1753180235946,0.55653535,118750.0,118740.0,0.65076017]
[1753180236144,0.27445051,118750.0,118740.0,0.65076017]
[1753180236347,0.55653535,118750.0,118740.0,0.65076017]
[1753180237047,0.27445051,118750.0,118740.0,0.65076017]
[1753180237246,0.55653535,118750.0,118740.0,0.65076017]
[1753180238041,0.27445051,118750.0,118740.0,0.65076017]
[1753180238243,0.55653535,118750.0,118740.0,0.65076017]
[1753180238842,0.27445051,118750.0,118740.0,0.65076017]
[1753180239048,0.55653535,118750.0,118740.0,0.65076017]
[1753180240051,0.55653535,118750.0,118740.0,0.65599017]
[1753180240451,1.15269535,118750.0,118740.0,0.65599017]
[1753180240651,1.15241535,118750.0,118740.0,0.68682017]
[1753180241953,1.15241535,118750.0,118740.0,0.68482017]
[1753180242151,0.87033051,118750.0,118740.0,0.68582017]
[1753180242351,1.15241535,118750.0,118740.0,0.67643313]
[1753180243754,1.15241535,118750.0,118740.0,0.50807163]
[1753180244155,1.15241535,118750.0,118740.0,0.67643313]
[1753180244356,1.15241535,118750.0,118740.0,0.70671136]
[1753180244853,1.15157535,118750.0,118740.0,0.70671136]
[1753180245058,1.15157535,118750.0,118740.0,0.73854136]
[1753180245450,1.15157535,118750.0,118740.0,0.72968575]
[1753180245648,1.15157535,118750.0,118740.0,0.5043377]
[1753180246658,0.55653535,118750.0,118740.0,0.45892035]
[1753180246860,1.15125535,118750.0,118740.0,0.48163623]
[1753180247260,1.15125535,118750.0,118740.0,0.46781145]
[1753180247853,1.15125535,118750.0,118740.0,0.44509557]
[1753180248156,1.15125535,118750.0,118740.0,0.44409557]
[1753180248363,1.15125535,118750.0,118740.0,0.46680912]
[1753180248661,1.15125535,118750.0,118740.0,0.44409557]
[1753180248960,1.15125535,118750.0,118740.0,0.37725345]
[1753180249163,1.15125535,118750.0,118740.0,0.39996764]
[1753180249361,1.15125535,118750.0,118740.0,0.36968941]
[1753180250461,1.15125535,118750.0,118740.0,0.34697522]
[1753180251060,1.15093535,118750.0,118740.0,0.34697522]
[1753180251963,0.55653535,118750.0,118740.0,0.34697522]
[1753180252261,1.15061535,118750.0,118740.0,0.34697522]
[1753180252454,0.55653535,118750.0,118740.0,0.34697522]
[1753180252654,1.15045535,118750.0,118740.0,0.34697522]
[1753180253056,1.15049535,118750.0,118740.0,0.36926522]
[1753180255057,1.15049535,118750.0,118740.0,0.34697522]
[1753180256266,0.55653535,118750.0,118740.0,0.34697522]
[1753180256466,1.15013535,118750.0,118740.0,0.34697522]
[1753180258859,1.31856735,118750.0,118740.0,0.34697522]
[1753180259066,0.2816157,118730.0,118720.0,0.02271419]
[1753180259365,0.1683898,118720.0,118710.0,0.41379242]
[1753180259671,1.15691464,118720.0,118710.0,0.45305242]
[1753180260258,0.57675775,118720.0,118710.0,0.43556823]
[1753180260464,0.88767291,118720.0,118710.0,0.91191884]
[1753180260776,0.03971,118700.0,118690.0,0.42154976]
[1753180260963,0.1684324,118690.0,118680.0,0.06074976]
[1753180261164,1.0930966,118680.0,118670.0,0.15225721]
[1753180261360,2.03705144,118680.0,118670.0,0.6055808]
[1753180261560,0.99324,118680.0,118670.0,0.70108801]
[1753180261765,1.7548866,118680.0,118670.0,0.70582801]
[1753180261965,1.7548866,118680.0,118670.0,0.98791285]
[1753180262174,1.59948311,118680.0,118670.0,0.91197564]
[1753180262463,0.89304311,118680.0,118670.0,0.91197564]
[1753180262668,0.89304311,118680.0,118670.0,1.26197564]
[1753180262869,0.89304311,118680.0,118670.0,1.26997564]
[1753180263072,0.89304311,118680.0,118670.0,0.91997564]
[1753180263571,0.89304311,118680.0,118670.0,0.98656175]
[1753180263766,0.89304311,118680.0,118670.0,0.99256175]
[1753180263969,0.89304311,118680.0,118670.0,0.98456175]
[1753180264168,0.89304311,118680.0,118670.0,0.98856175]
[1753180264367,0.89304311,118680.0,118670.0,0.70647691]
[1753180264564,0.89304311,118680.0,118670.0,1.04705708]
[1753180265567,0.89304311,118680.0,118670.0,0.98656175]
[1753180266369,0.89304311,118680.0,118670.0,1.30656175]
[1753180267672,0.89304311,118680.0,118670.0,0.98656175]
[1753180267870,0.89304311,118680.0,118670.0,1.31656175]
[1753180268274,0.89304311,118680.0,118670.0,1.33656175]
[1753180268874,0.89304311,118680.0,118670.0,0.98656175]
[1753180269371,0.89304311,118680.0,118670.0,1.33656175]
[1753180271973,0.91951311,118680.0,118670.0,1.33656175]
[1753180273577,0.91951311,118680.0,118670.0,1.31656175]
[1753180273875,0.91951311,118680.0,118670.0,0.98656175]
[1753180274077,0.93078311,118680.0,118670.0,1.34656175]
[1753180274378,0.96728311,118680.0,118670.0,1.90000175]
[1753180277580,0.96728311,118680.0,118670.0,1.58000175]
[1753180277882,0.96728311,118680.0,118670.0,1.90000175]
[1753180278976,0.96728311,118680.0,118670.0,1.29791691]
[1753180279180,0.96728311,118680.0,118670.0,1.91000175]